bitfinex/quotes_BTCUSD_20250204
["timestamp","ask_amount","ask_price","bid_price","bid_amount"]
[1738636142693,1.94876428,101010.0,101000.0,0.10249186]
[1738636143698,2.09726428,101010.0,101000.0,0.10249186]
[1738636143876,1.94876428,101010.0,101000.0,0.10249186]
[1738636144246,1.62336428,101010.0,101000.0,0.10249186]
[1738636145680,0.12336428,101010.0,101000.0,0.10249186]
[1738636145885,0.12336428,101010.0,101000.0,0.25100586]
[1738636146697,0.12336428,101010.0,101000.0,0.10249186]
[1738636147450,0.12336428,101010.0,101000.0,0.25100586]
[1738636156060,0.12336428,101010.0,101000.0,0.10249186]
[1738636156455,0.12336428,101010.0,101000.0,0.25100586]
[1738636157133,0.12336428,101010.0,101000.0,0.10249186]
[1738636158122,0.27186428,101010.0,101000.0,0.10249186]
[1738636160674,1.77186428,101010.0,101000.0,0.10249186]
[1738636161539,0.12336428,101010.0,101000.0,0.10249186]
[1738636162156,0.12336428,101010.0,101000.0,0.25100586]
[1738636162332,0.12336428,101010.0,101000.0,0.28185521]
[1738636162574,0.07606428,101010.0,101000.0,0.28185521]
[1738636166386,0.07606428,101010.0,101000.0,0.29283614]
[1738636171254,0.00026428,101010.0,101000.0,0.44283614]
[1738636171459,0.00026428,101010.0,101000.0,0.48823614]
[1738636175937,0.00026428,101010.0,101000.0,0.29283614]
[1738636180108,0.00026428,101010.0,101000.0,0.44283614]
[1738636182656,0.00026428,101010.0,101000.0,0.4613374]
[1738636183994,0.00026428,101010.0,101000.0,0.44283614]
[1738636184642,0.00026428,101010.0,101000.0,0.53154919]
[1738636184836,0.07836428,101010.0,101000.0,0.53154919]
[1738636185254,0.00026428,101010.0,101000.0,0.53154919]
[1738636186568,0.00026428,101010.0,101000.0,0.55004872]
[1738636187683,0.00026428,101010.0,101000.0,0.46133567]
[1738636189430,0.00026428,101010.0,101000.0,0.49093566]
[1738636190710,0.00026428,101010.0,101000.0,0.46133567]
[1738636192156,0.00026428,101010.0,101000.0,0.44283614]
[1738636195346,0.12636428,101010.0,101000.0,0.44283614]
[1738636197756,0.45176428,101010.0,101000.0,0.44283614]
[1738636199851,0.40306428,101010.0,101000.0,0.44283614]
[1738636200431,0.32566428,101010.0,101000.0,0.44283614]
[1738636203566,0.00026428,101010.0,101000.0,0.44283614]
[1738636207057,0.00026428,101010.0,101000.0,0.52043614]
[1738636208736,0.00026428,101010.0,101000.0,0.53043614]
[1738636208944,0.00026428,101010.0,101000.0,0.59993614]
[1738636209100,0.00026428,101010.0,101000.0,0.94007589]
[1738636209481,8.44e-05,101010.0,101000.0,0.94007589]
[1738636210893,4e-07,101010.0,101000.0,0.94007589]
[1738636211886,4e-07,101010.0,101000.0,0.97501256]
[1738636212327,6.8e-07,101020.0,101010.0,0.4729]
[1738636212504,6.8e-07,101020.0,101010.0,0.60613441]
[1738636215959,6.8e-07,101020.0,101010.0,0.59613441]
[1738636216889,6.8e-07,101020.0,101010.0,0.51433441]
[1738636217333,0.0816,101040.0,101030.0,0.29847]
[1738636217334,0.08151119,101040.0,101030.0,0.29847]
[1738636217491,0.08151119,101040.0,101030.0,0.43170441]
[1738636218485,0.08165202,101040.0,101030.0,0.43170441]
[1738636219076,0.00014083,101040.0,101030.0,0.43170441]
[1738636223852,0.00014083,101040.0,101030.0,0.44232585]
[1738636224484,0.08164083,101040.0,101030.0,0.44232585]
[1738636226113,0.13064083,101040.0,101030.0,0.13323441]
[1738636226368,0.27909683,101040.0,101030.0,0.10238506]
[1738636227724,0.27932091,101040.0,101030.0,0.10238506]
[1738636227935,0.27932091,101040.0,101020.0,0.08852355]
[1738636227936,0.27257,101030.0,101020.0,0.08852355]
[1738636228152,0.27257,101030.0,101020.0,0.19090861]
[1738636228760,1.77257,101030.0,101020.0,0.19090861]
[1738636229249,1.77257,101030.0,101020.0,0.22270301]
[1738636229448,1.77257,101030.0,101020.0,0.19090861]
[1738636229703,1.77257,101030.0,101020.0,0.10238506]
[1738636230076,1.6241,101030.0,101020.0,0.10238506]
[1738636230539,1.6241,101030.0,101020.0,0.25087006]
[1738636231656,0.1241,101030.0,101020.0,0.25087006]
[1738636232061,0.1241,101030.0,101020.0,0.10238506]
[1738636232468,0.27257,101030.0,101020.0,0.10238506]
[1738636232665,0.1241,101030.0,101020.0,0.10238506]
[1738636232927,0.27257,101030.0,101020.0,0.10238506]
[1738636234859,0.42257,101030.0,101010.0,0.0001067]
[1738636235062,0.277085,101020.0,101010.0,0.10249176]
[1738636235654,2.20386217,101020.0,101010.0,0.0001067]
[1738636235911,0.4254,101010.0,101000.0,0.08863035]
[1738636236686,0.4254,101010.0,101000.0,0.00898052]
[1738636237317,0.4484,101010.0,101000.0,0.00898052]
[1738636237654,0.4484,101010.0,101000.0,0.0001068]
[1738636238493,0.4254,101010.0,101000.0,0.0001068]
[1738636240077,1.9254,101010.0,101000.0,0.0001068]
[1738636241243,1.6269,101010.0,101000.0,0.10249186]
[1738636241580,0.1269,101010.0,101000.0,0.10249186]
[1738636242373,0.1269,101010.0,101000.0,0.25100586]
[1738636242775,0.1269,101010.0,101000.0,0.10249186]
[1738636245100,0.1269,101010.0,101000.0,0.25100586]
[1738636245311,0.0771,101010.0,101000.0,0.25100586]
[1738636245506,0.1282,101020.0,101010.0,0.1485]
[1738636245737,0.1282,101020.0,101010.0,0.25088506]
[1738636248053,0.1282,101020.0,101010.0,0.10238506]
[1738636248633,0.1282,101020.0,101010.0,0.25088506]
[1738636249437,1.6282,101020.0,101010.0,0.25088506]
[1738636250048,1.6282,101020.0,101010.0,0.10238506]
[1738636250684,1.6282,101020.0,101010.0,0.10249186]
[1738636251085,0.58107711,101020.0,101010.0,0.0001068]
[1738636251285,0.68346217,101020.0,101010.0,0.0001068]
[1738636251520,0.68368645,101020.0,101010.0,0.0001068]
[1738636254785,0.70368645,101020.0,101010.0,0.0001068]
[1738636255348,0.69368645,101020.0,101010.0,0.0001068]
[1738636257441,0.68368645,101020.0,101010.0,0.0001068]
[1738636257647,0.45359211,101010.0,101000.0,0.0001068]
[1738636257872,0.55597717,101010.0,101000.0,0.0001068]
[1738636258228,0.41458506,101010.0,101000.0,0.0001068]
[1738636258533,0.3122,101010.0,101000.0,0.0001068]
[1738636259180,0.3022,101010.0,101000.0,0.0001068]
[1738636259494,0.2792,101010.0,101000.0,0.0001068]
[1738636259894,1.8022,101010.0,101000.0,0.0001068]
[1738636260321,1.9522,101010.0,101000.0,0.0001068]
[1738636262330,1.7792,101010.0,101000.0,0.0001068]
[1738636262531,0.2302,101010.0,101000.0,0.10249186]
[1738636262736,0.26962228,101020.0,101000.0,0.25100586]
[1738636262959,1.5,101010.0,101000.0,0.1486208]
[1738636263135,0.00022428,101020.0,101010.0,0.1485]
[1738636263437,0.00022428,101020.0,101010.0,0.25088506]
[1738636263731,1.50022428,101020.0,101010.0,0.25088506]
[1738636270898,1.64870928,101020.0,101010.0,0.10238506]
[1738636271107,0.22670928,101020.0,101010.0,0.10238506]
[1738636271290,0.07822428,101020.0,101010.0,0.10238506]
[1738636273381,0.22670928,101020.0,101010.0,0.10238506]
[1738636274131,0.07822428,101020.0,101010.0,0.10238506]
[1738636275078,0.22670928,101020.0,101010.0,0.10238506]
[1738636276016,0.07822428,101020.0,101010.0,0.10238506]
[1738636276220,0.22670928,101020.0,101010.0,0.10238506]
[1738636276784,0.07822428,101020.0,101010.0,0.10238506]
[1738636277008,0.22670928,101020.0,101010.0,0.10238506]
[1738636277538,0.07822428,101020.0,101010.0,0.10238506]
[1738636278816,0.22670928,101020.0,101010.0,0.10238506]
[1738636279022,0.07822428,101020.0,101010.0,0.10238506]
[1738636280165,0.07822428,101020.0,101010.0,0.25088506]
[1738636280367,0.00022428,101020.0,101010.0,0.25088506]
[1738636280511,0.00022428,101020.0,101010.0,0.40088506]
[1738636281123,0.00022428,101020.0,101010.0,0.43164558]
[1738636281745,0.00022428,101020.0,101010.0,0.55334558]
[1738636283923,0.00022428,101020.0,101010.0,0.47804558]
[1738636284123,0.00022428,101020.0,101010.0,0.48856209]
[1738636284833,0.00022428,101020.0,101010.0,0.57708564]
[1738636286323,0.00022428,101020.0,101010.0,0.65228564]
[1738636287338,0.00022428,101020.0,101010.0,0.65239244]
[1738636287538,0.00022428,101020.0,101010.0,0.56386889]
[1738636291170,0.00022428,101020.0,101010.0,0.65239244]
[1738636293252,0.00022428,101020.0,101010.0,0.38079244]
[1738636293721,0.00022428,101020.0,101010.0,0.35003192]
[1738636293899,0.00022428,101020.0,101010.0,0.53077349]
[1738636295486,0.00022428,101020.0,101010.0,0.44224994]
[1738636298972,0.08022428,101020.0,101010.0,0.44224994]
[1738636299474,0.00022428,101020.0,101010.0,0.44224994]
[1738636301093,0.00022428,101020.0,101010.0,0.51834994]
[1738636304119,0.00022428,101020.0,101010.0,0.44224994]
[1738636309494,0.00022428,101020.0,101010.0,0.53077349]
[1738636310858,0.13122428,101020.0,101010.0,0.22175698]
[1738636311270,1.63122428,101020.0,101010.0,0.19101541]
[1738636311421,1.63122428,101020.0,101010.0,0.37031877]
[1738636311624,1.63122428,101020.0,101010.0,0.19101541]
[1738636311827,1.77970928,101020.0,101010.0,0.19101541]
[1738636312053,1.63122428,101020.0,101010.0,0.19101541]
[1738636314154,1.63122428,101020.0,101010.0,0.19083553]
[1738636314360,1.63122428,101020.0,101010.0,0.10231198]
[1738636314703,0.13122428,101020.0,101010.0,0.10231198]
[1738636315572,0.45662428,101020.0,101010.0,0.25081198]
[1738636315788,0.45662428,101020.0,101010.0,0.28162823]
[1738636317320,0.45662428,101020.0,101010.0,0.13312823]
[1738636317527,0.45662428,101020.0,101010.0,0.28162823]
[1738636320323,0.45662428,101020.0,101010.0,0.25081198]
[1738636323331,0.45662428,101020.0,101010.0,0.281619]
[1738636324469,0.32562428,101020.0,101010.0,0.431619]
[1738636324821,0.32562428,101020.0,101010.0,0.479019]
[1738636325508,0.00022428,101020.0,101010.0,0.479019]
[1738636326710,0.00022428,101020.0,101010.0,0.56754255]
[1738636327846,0.00022428,101020.0,101010.0,0.52014255]
[1738636330038,0.00022428,101020.0,101010.0,0.53053969]
[1738636333209,0.32562428,101020.0,101010.0,0.44201614]
[1738636333411,0.40372428,101020.0,101010.0,0.133119]
[1738636333662,0.27390928,101020.0,101010.0,0.133119]
[1738636333896,0.27390928,101020.0,101010.0,0.0001068]
[1738636334102,0.59930928,101020.0,101010.0,0.0001068]
[1738636334432,2.09930928,101020.0,101010.0,0.0001068]
[1738636338744,1.95082428,101020.0,101010.0,0.10249186]
[1738636338944,0.45082428,101020.0,101010.0,0.25099186]
[1738636339146,0.59930928,101020.0,101010.0,0.10249186]
[1738636339295,0.45082428,101020.0,101010.0,0.10249186]
[1738636343055,0.62230928,101020.0,101010.0,0.0001068]
[1738636343260,0.44690928,101020.0,101010.0,0.0001068]
[1738636343414,0.70068645,101020.0,101010.0,0.0001068]
[1738636344905,0.7299131,101020.0,101010.0,0.0001068]
[1738636345787,0.59852099,101020.0,101010.0,0.0001068]
[1738636346298,0.60881348,101020.0,101010.0,0.0001068]
[1738636346704,0.59881348,101020.0,101010.0,0.0001068]
[1738636347119,0.48642842,101020.0,101010.0,0.0001068]
[1738636347321,0.46342842,101020.0,101010.0,0.0001068]
[1738636347744,0.48642842,101020.0,101010.0,0.0001068]
[1738636348361,0.45720177,101020.0,101010.0,0.0001068]
[1738636348898,0.44690928,101020.0,101010.0,0.0001068]
[1738636349641,1.94690928,101020.0,101010.0,0.0001068]
[1738636352275,1.95741277,101020.0,101010.0,0.0001068]
[1738636356763,2.05990749,101020.0,101010.0,0.0001068]
[1738636356965,1.95741277,101020.0,101010.0,0.0001068]
[1738636357325,0.58880488,101020.0,101010.0,0.0001068]
[1738636357723,0.45741277,101020.0,101010.0,0.0001068]
[1738636358751,0.42390928,101020.0,101010.0,0.0001068]
[1738636358948,1.62542428,101020.0,101010.0,0.25099186]
[1738636359219,1.50022428,101020.0,101010.0,0.25099186]
[1738636359770,1.64870928,101020.0,101010.0,0.10249186]
[1738636360935,1.50022428,101020.0,101010.0,0.25099186]
[1738636362172,0.00022428,101020.0,101010.0,0.32839186]
[1738636362416,0.00022428,101020.0,101010.0,0.47839186]
[1738636362995,0.00022428,101020.0,101010.0,0.50915617]
[1738636370307,0.00022428,101020.0,101010.0,0.55445617]
[1738636370784,0.00022428,101020.0,101010.0,0.57745617]
[1738636372419,0.00022428,101020.0,101010.0,0.55445617]
[1738636374351,0.00026428,101020.0,101010.0,0.55445617]
[1738636378201,0.00026428,101020.0,101010.0,0.57745617]
[1738636378400,0.00026428,101020.0,101010.0,0.58745617]
[1738636379118,2.8e-07,101020.0,101010.0,0.58745617]
[1738636380402,0.00036491,101040.0,101030.0,0.14847]
[1738636380601,0.00036491,101040.0,101030.0,0.57803539]
[1738636380861,0.00036491,101040.0,101030.0,0.57671937]
[1738636381033,0.00036491,101040.0,101030.0,0.58671937]
[1738636381618,0.00036491,101040.0,101030.0,0.57671937]
[1738636382236,0.00036491,101040.0,101030.0,0.55371937]
[1738636383788,0.00036491,101040.0,101030.0,0.56437384]
[1738636384910,0.00036491,101040.0,101030.0,0.91907384]
[1738636386001,9.1e-07,101040.0,101030.0,0.91907384]
[1738636386402,0.00022428,101060.0,101050.0,0.298441]
[1738636386606,0.00022428,101060.0,101050.0,0.43159037]
[1738636391483,0.00022428,101060.0,101050.0,0.44202112]
[1738636393152,0.00022428,101060.0,101050.0,0.59382112]
[1738636393369,0.00022428,101060.0,101050.0,0.60382112]
[1738636393564,0.00022428,101060.0,101050.0,0.61382112]
[1738636393786,2.8e-07,101060.0,101050.0,0.61382112]
[1738636394602,0.0002245,101090.0,101060.0,0.15]
[1738636394762,0.00036543,101090.0,101080.0,0.40078206]
[1738636395760,0.00036543,101090.0,101080.0,0.43142423]
[1738636396734,0.00036543,101090.0,101080.0,0.45442423]
[1738636396934,4.3e-07,101090.0,101080.0,0.78612423]
[1738636397292,4.3e-07,101090.0,101080.0,0.96783104]
[1738636398855,4.3e-07,101090.0,101080.0,0.92492423]
[1738636400084,4.3e-07,101090.0,101080.0,0.93212423]
[1738636402589,9.3e-07,101100.0,101090.0,0.321382]
[1738636402793,0.00047522,101100.0,101090.0,0.77610923]
[1738636403587,0.00047522,101100.0,101090.0,0.79610923]
[1738636403759,2.2e-07,101100.0,101090.0,0.84283075]
[1738636403964,2.2e-07,101100.0,101090.0,0.92043075]
[1738636404212,3e-07,101110.0,101100.0,0.148367]
[1738636404414,3e-07,101110.0,101100.0,0.57093076]
[1738636404600,3e-07,101110.0,101100.0,0.56961575]
[1738636405564,3e-07,101110.0,101100.0,0.53874662]
[1738636405716,3e-07,101110.0,101100.0,0.51289423]
[1738636405924,3e-07,101110.0,101100.0,0.46439423]
[1738636407583,3e-07,101110.0,101100.0,0.49024662]
[1738636407756,3e-07,101110.0,101100.0,0.50024662]
[1738636407969,3e-07,101110.0,101100.0,0.52111575]
[1738636408540,3e-07,101110.0,101100.0,0.96901575]
[1738636408748,3e-07,101110.0,101100.0,0.97952998]
[1738636409522,3e-07,101110.0,101100.0,0.96952998]
[1738636409720,3e-07,101110.0,101100.0,0.90202998]
[1738636409947,3e-07,101110.0,101100.0,0.89202998]
[1738636410147,3e-07,101110.0,101100.0,0.84332998]
[1738636410348,3e-07,101110.0,101100.0,0.80660846]
[1738636410786,3e-07,101110.0,101100.0,0.83246085]
[1738636411230,3e-07,101110.0,101100.0,0.80660846]
[1738636411597,3e-07,101110.0,101100.0,0.85784543]
[1738636411995,3e-07,101110.0,101100.0,0.89504543]
[1738636412201,3e-07,101110.0,101100.0,0.90504543]
[1738636412988,3e-07,101110.0,101100.0,0.84380846]
[1738636413213,3e-07,101110.0,101100.0,0.80660846]
[1738636413522,3e-07,101110.0,101100.0,0.85784543]
[1738636414710,3e-07,101110.0,101100.0,0.89738143]
[1738636416005,3e-07,101110.0,101100.0,0.88738143]
[1738636416209,3e-07,101110.0,101100.0,0.89748813]
[1738636416412,3e-07,101110.0,101100.0,0.87210355]
[1738636416659,3e-07,101110.0,101100.0,0.84625116]
[1738636417061,3e-07,101110.0,101100.0,0.87281985]
[1738636417625,3e-07,101110.0,101100.0,0.89820443]
[1738636417943,3e-07,101110.0,101100.0,0.87281985]
[1738636419325,3e-07,101110.0,101100.0,0.83625116]
[1738636419526,3e-07,101110.0,101100.0,0.84625116]
[1738636419857,0.07093128,101130.0,101120.0,0.148338]
[1738636420076,0.07093128,101130.0,101120.0,0.25072306]
[1738636420077,0.07107351,101130.0,101120.0,0.25072306]
[1738636420218,0.07107351,101130.0,101120.0,0.28130539]
[1738636427661,0.07107351,101130.0,101120.0,0.2917691]
[1738636428387,0.07118021,101130.0,101120.0,0.2917691]
[1738636432284,0.11818021,101130.0,101120.0,0.2917691]
[1738636432805,0.11818021,101130.0,101120.0,0.4417691]
[1738636433005,0.11318021,101130.0,101120.0,0.4417691]
[1738636440877,0.11318021,101130.0,101120.0,0.28152925]
[1738636441199,0.11318021,101130.0,101120.0,0.13319125]
[1738636442351,1.61318021,101130.0,101120.0,0.13319125]
[1738636443225,1.61318021,101130.0,101120.0,0.28152925]
[1738636443402,1.61318021,101130.0,101120.0,0.25094692]
[1738636443743,0.11318021,101130.0,101120.0,0.25094692]
[1738636444249,0.43858021,101130.0,101120.0,0.28172523]
[1738636444392,0.43858021,101130.0,101120.0,0.25094692]
[1738636446484,0.43858021,101130.0,101120.0,0.28170853]
[1738636446947,0.43858021,101130.0,101120.0,0.43170853]
[1738636447147,0.11318021,101130.0,101120.0,0.43170853]
[1738636447351,0.00024893,101130.0,101120.0,0.43170853]
[1738636449909,0.04734893,101130.0,101120.0,0.43170853]
[1738636451696,0.04734893,101130.0,101120.0,0.52023208]
[1738636452342,0.12584893,101130.0,101120.0,0.52023208]
[1738636456860,0.00024893,101130.0,101120.0,0.52023208]
[1738636457440,0.00024893,101130.0,101120.0,0.67063208]
[1738636459025,0.00024893,101130.0,101120.0,0.69647836]
[1738636459219,0.00024893,101130.0,101120.0,0.72241951]
[1738636460335,9.3e-07,101130.0,101120.0,1.05411951]
[1738636460772,9.3e-07,101130.0,101120.0,1.07123951]
[1738636460966,9.3e-07,101130.0,101120.0,1.04529836]
[1738636461777,2.1e-07,101140.0,101130.0,0.331323]
[1738636461924,2.1e-07,101140.0,101130.0,0.43370806]
[1738636462122,2.1e-07,101140.0,101130.0,0.46446967]
[1738636463271,2.1e-07,101140.0,101130.0,0.78616967]
[1738636463509,0.00018449,101150.0,101140.0,0.321309]
[1738636463675,0.00018449,101150.0,101140.0,0.45445567]
[1738636468414,0.00018449,101150.0,101140.0,0.54292708]
[1738636470906,4.9e-07,101150.0,101140.0,0.54292708]
[1738636471055,4.9e-07,101150.0,101140.0,0.58882708]
[1738636471447,0.07982428,101170.0,101160.0,0.148279]
[1738636471654,0.00036648,101170.0,101160.0,0.43274016]
[1738636471855,0.00036648,101170.0,101160.0,0.45442567]
[1738636472208,0.00036648,101170.0,101160.0,0.53032567]
[1738636472866,4.8e-07,101170.0,101160.0,0.54032567]
[1738636473167,4.8e-07,101170.0,101160.0,0.90792567]
[1738636474089,4.8e-07,101170.0,101160.0,0.91500567]
[1738636474284,0.083,101190.0,101180.0,0.14825]
[1738636474285,0.08291106,101190.0,101180.0,0.14825]
[1738636474491,0.08291106,101190.0,101180.0,0.28139667]
[1738636474894,0.08291106,101190.0,101180.0,0.25063506]
[1738636475095,0.13151106,101190.0,101180.0,0.25063506]
[1738636478012,0.13151106,101190.0,101180.0,0.40063506]
[1738636481397,0.45691106,101190.0,101180.0,0.25063506]
[1738636481592,0.60514606,101190.0,101180.0,0.10238506]
[1738636481795,0.45691106,101190.0,101180.0,0.10238506]
[1738636483074,1.95691106,101190.0,101180.0,0.10238506]
[1738636484488,1.95691106,101190.0,101180.0,0.25063506]
[1738636486047,1.95691106,101190.0,101180.0,0.10238506]
[1738636486252,1.95691106,101190.0,101180.0,0.25063506]
[1738636488560,1.95701766,101190.0,101180.0,0.25063506]
[1738636488770,0.45701766,101190.0,101180.0,0.25063506]
[1738636489394,0.13161766,101190.0,101180.0,0.40063506]
[1738636489553,0.0001066,101190.0,101180.0,0.40063506]
[1738636489874,0.0001066,101190.0,101180.0,0.43131649]
[1738636492680,0.0001066,101190.0,101180.0,0.23370155]
[1738636492877,0.0001066,101190.0,101180.0,0.35127012]
[1738636493180,0.0001066,101190.0,101180.0,0.3819807]
[1738636499476,0.0001066,101190.0,101180.0,0.4214927]
[1738636500535,0.0001066,101190.0,101180.0,0.4444927]
[1738636501152,0.0001066,101190.0,101180.0,0.44471677]
[1738636501559,0.0001066,101190.0,101180.0,0.49441677]
[1738636503009,0.0001066,101190.0,101180.0,0.44471677]
[1738636503195,0.0001066,101190.0,101180.0,0.42171677]
[1738636505384,0.0001066,101190.0,101180.0,0.50987092]
[1738636506565,0.1284066,101190.0,101180.0,0.47035892]
[1738636506720,0.1284066,101190.0,101180.0,0.36972386]
[1738636506923,0.1284066,101190.0,101180.0,0.51972386]
[1738636507991,0.1284066,101190.0,101180.0,0.43156971]
[1738636513077,0.1284066,101190.0,101180.0,0.13331971]
[1738636513278,0.1284066,101190.0,101180.0,0.28156971]
[1738636517866,0.0822066,101190.0,101180.0,0.43156971]
[1738636518072,0.0001066,101190.0,101180.0,0.43156971]
[1738636518683,0.0809066,101190.0,101180.0,0.43156971]
[1738636519610,0.0001066,101190.0,101180.0,0.43156971]
[1738636520621,0.0001066,101190.0,101180.0,0.45456971]
[1738636520808,0.0001066,101190.0,101180.0,0.60133431]
[1738636521003,0.0001066,101190.0,101180.0,0.58236971]
[1738636521463,6e-07,101190.0,101180.0,0.58236971]
[1738636522003,6e-07,101190.0,101180.0,0.93303431]
[1738636522587,6e-07,101190.0,101180.0,0.91406971]
[1738636522986,6e-07,101190.0,101180.0,1.00222386]
[1738636524172,6e-07,101190.0,101180.0,0.99222386]
[1738636525946,6e-07,101190.0,101180.0,0.90406971]
[1738636528219,6e-07,101190.0,101180.0,0.60326971]
[1738636528419,6e-07,101190.0,101180.0,0.43156971]
[1738636528715,6e-07,101190.0,101180.0,0.28156971]
[1738636528920,0.1280006,101190.0,101180.0,0.28156971]
[1738636529483,0.1280006,101190.0,101180.0,0.43156971]
[1738636547824,6e-07,101190.0,101180.0,0.43156971]
[1738636549217,6e-07,101190.0,101180.0,0.53636971]
[1738636549676,6e-07,101190.0,101180.0,0.60477648]
[1738636550044,6e-07,101190.0,101180.0,0.58386971]
[1738636551092,6e-07,101190.0,101180.0,0.67231577]
[1738636553046,6e-07,101190.0,101180.0,0.54301577]
[1738636554877,6e-07,101190.0,101180.0,0.45456971]
[1738636559740,6e-07,101190.0,101180.0,0.43156971]
[1738636560563,6e-07,101190.0,101180.0,0.45456971]
[1738636561458,6e-07,101190.0,101180.0,0.52003986]
[1738636567873,0.0829006,101190.0,101180.0,0.52003986]
[1738636570104,0.1312006,101190.0,101180.0,0.52003986]
[1738636574018,0.1312006,101190.0,101180.0,0.43156971]
[1738636577083,0.1312006,101190.0,101180.0,0.40085913]
[1738636579956,0.2794356,101190.0,101180.0,0.10260913]
[1738636580111,0.4394356,101190.0,101180.0,0.00022407]
[1738636580323,0.59382771,101190.0,101180.0,0.00022407]
[1738636580521,0.295265,101170.0,101160.0,0.08869401]
[1738636580724,0.305265,101170.0,101160.0,0.08869401]
[1738636580928,0.43665711,101170.0,101160.0,0.08869401]
[1738636581348,0.01,101150.0,101120.0,0.34632986]
[1738636581557,0.124,101140.0,101130.0,0.1484632]
[1738636582522,0.124,101140.0,101130.0,0.0001422]
[1738636582969,0.124,101140.0,101130.0,0.1484652]
[1738636583550,0.124,101140.0,101130.0,0.25085026]
[1738636592819,0.4494,101140.0,101130.0,0.25085026]
[1738636594263,0.4494,101140.0,101130.0,0.25107454]
[1738636598748,0.4494,101140.0,101130.0,0.26121752]
[1738636599709,0.4494,101140.0,101130.0,0.32245198]
[1738636599839,0.4494,101140.0,101130.0,0.312309]
[1738636606027,0.4494,101140.0,101130.0,0.163986]
[1738636606230,0.4494,101140.0,101130.0,0.06160094]
[1738636606407,0.597709,101140.0,101130.0,0.06160094]
[1738636607559,0.272309,101140.0,101130.0,0.06160094]
[1738636612264,0.30171723,101140.0,101130.0,0.06160094]
[1738636615512,0.272309,101140.0,101130.0,0.06160094]
[1738636617417,0.28247059,101140.0,101130.0,0.06160094]
[1738636618583,0.31547059,101140.0,101130.0,0.06160094]
[1738636621218,0.305309,101140.0,101130.0,0.06160094]
[1738636626791,0.124,101140.0,101130.0,0.20992394]
[1738636626968,1.624,101140.0,101130.0,0.20992394]
[1738636627197,0.124,101140.0,101130.0,0.312309]
[1738636627401,0.083,101150.0,101140.0,0.197743]
[1738636629884,0.083,101150.0,101140.0,0.30012806]
[1738636630329,1.6270068,101160.0,101140.0,0.49786906]
[1738636630478,1.6270068,101160.0,101150.0,0.148294]
[1738636631089,1.87778652,101160.0,101140.0,0.25068906]
[1738636631320,2.08550352,101160.0,101130.0,0.45711094]
[1738636631519,2.08550352,101160.0,101140.0,0.346052]
[1738636631966,1.6270068,101160.0,101150.0,0.148294]
[1738636633665,1.6270068,101160.0,101140.0,0.64617006]
[1738636634089,1.6270068,101160.0,101150.0,0.148294]
[1738636634758,1.6270068,101160.0,101140.0,0.64617006]
[1738636634759,1.7752868,101160.0,101140.0,0.64617006]
[1738636634958,1.6270068,101160.0,101140.0,0.64617006]
[1738636636215,1.72950152,101160.0,101140.0,0.10238506]
[1738636636386,0.0756,101150.0,101130.0,0.40766894]
[1738636636582,0.0756,101150.0,101130.0,0.73857981]
[1738636636786,0.0756,101150.0,101140.0,0.148309]
[1738636636986,1.80039452,101160.0,101150.0,0.148294]
[1738636636987,1.6252068,101160.0,101150.0,0.148294]
[1738636637456,1.6252068,101160.0,101140.0,0.64616806]
[1738636637580,1.6252068,101160.0,101150.0,0.148294]
[1738636638185,1.6252068,101160.0,101140.0,0.64617006]
[1738636638371,1.7734898,101160.0,101140.0,0.44843006]
[1738636638940,1.7734898,101160.0,101140.0,0.64617106]
[1738636639151,1.6252068,101160.0,101140.0,0.64617106]
[1738636639372,1.7734898,101160.0,101140.0,0.64617106]
[1738636639591,0.148294,101150.0,101130.0,0.21587194]
[1738636639803,0.223894,101150.0,101130.0,0.54678756]
[1738636639999,0.421627,101150.0,101130.0,0.20071256]
[1738636640198,0.194109,101140.0,101130.0,0.06756094]
[1738636640400,0.269709,101140.0,101130.0,0.06756094]
[1738636640902,1.769709,101140.0,101130.0,0.06756094]
[1738636642462,1.79258078,101140.0,101130.0,0.06756094]
[1738636643310,1.802709,101140.0,101130.0,0.06756094]
[1738636646940,1.81279672,101140.0,101130.0,0.06756094]
[1738636649178,1.82279672,101140.0,101130.0,0.06756094]
[1738636659710,1.91518178,101140.0,101130.0,0.06756094]
[1738636659844,2.19657389,101140.0,101130.0,0.06756094]
[1738636660047,2.29906861,101140.0,101130.0,0.06756094]
[1738636660249,2.1676765,101140.0,101130.0,0.06756094]
[1738636661000,0.79906861,101140.0,101130.0,0.06756094]
[1738636661218,0.78906861,101140.0,101130.0,0.06756094]
[1738636661574,0.84841861,101140.0,101130.0,0.06756094]
[1738636661759,0.95231861,101140.0,101130.0,9.4e-07]
[1738636662379,0.96208577,101140.0,101130.0,9.4e-07]
[1738636663927,0.95231861,101140.0,101130.0,9.4e-07]
[1738636664151,0.95231861,101140.0,101130.0,0.00010764]
[1738636668302,0.75289389,101140.0,101130.0,0.00010764]
[1738636668527,0.85679389,101140.0,101130.0,0.00010764]
[1738636670091,0.57540178,101140.0,101130.0,0.00010764]
[1738636670886,0.41518178,101140.0,101130.0,0.00010764]
[1738636671109,0.25399672,101140.0,101130.0,0.00010764]
[1738636671339,0.33139672,101140.0,101130.0,0.00010764]
[1738636671573,0.34139672,101140.0,101130.0,0.00010764]
[1738636672023,0.30839672,101140.0,101130.0,0.00010764]
[1738636672367,0.34139672,101140.0,101130.0,0.00010764]
[1738636673405,0.33139672,101140.0,101130.0,0.00010764]
[1738636674291,0.18139672,101140.0,101130.0,0.00010764]
[1738636674529,0.70294416,101150.0,101130.0,0.00010764]
[1738636674706,0.148309,101140.0,101130.0,0.00010764]
[1738636675579,0.55354416,101150.0,101130.0,0.1520927]
[1738636675785,0.148309,101140.0,101130.0,0.1520927]
[1738636676583,0.14853328,101140.0,101130.0,0.1520927]
[1738636677656,0.14853328,101140.0,101130.0,0.00010764]
[1738636678585,0.74660517,101140.0,101130.0,0.00010764]
[1738636679147,0.73660517,101140.0,101130.0,0.00010764]
[1738636679476,0.63411045,101140.0,101130.0,0.00010764]
[1738636679827,0.50271834,101140.0,101130.0,0.00010764]
[1738636680081,0.51271834,101140.0,101130.0,0.00010764]
[1738636680281,0.50271834,101140.0,101130.0,0.00010764]
[1738636680522,0.41033328,101140.0,101130.0,0.00010764]
[1738636680743,0.512828,101140.0,101130.0,0.00010764]
[1738636681361,0.73660517,101140.0,101130.0,0.00010764]
[1738636681787,0.63411045,101140.0,101130.0,0.00010764]
[1738636686574,0.51271834,101140.0,101130.0,0.00010764]
[1738636686939,0.50271834,101140.0,101130.0,0.00010764]
[1738636687561,0.63411045,101140.0,101130.0,0.00010764]
[1738636688686,0.68011045,101140.0,101130.0,0.00010764]
[1738636688892,0.78260517,101140.0,101130.0,0.00010764]
[1738636689232,0.78260517,101140.0,101130.0,6.4e-07]
[1738636690211,0.68011045,101140.0,101130.0,6.4e-07]
[1738636693373,0.73939045,101140.0,101130.0,6.4e-07]
[1738636693792,1.71839045,101140.0,101130.0,6.4e-07]